{"text_format":"2","workbook":"xlsx","n_sheets":11,"sheets":["PFP","PFP1.1_Topo","PFP1.2_Téc","PFP1.3_Geo","PFP1.4_Amb","PFP2.1_FatorKa","PFP2.2_FatorKb","PFP2.3_FatorKc","PFP3_FatorKd","CRO1_Ins-Pro","CCU VEÍCULO"],"not_rendered":{"charts":0,"images":1,"macros":0,"external_links":3,"defined_names":107,"comments":0,"pivot_tables":0},"unopened":[],"bounds":{"document_bytes":16777216,"sheet_cells":100000,"run_cost":"one","rows_first":2000,"rows_last":500,"rows_between":2000,"halvings":0,"cell_chars":16384,"cell_head_chars":4096},"cells_cut":0,"cells_raw":0,"read":"whole","date_system":"1900"}

{"sheet":"PFP","index":0,"n_rows":41,"n_cols":12,"rows_kept":41,"cut":false,"hidden":false,"merged":[[25,7,25,10],[25,0,25,6],[24,7,24,10],[24,0,24,6],[26,0,26,6],[26,7,26,10],[40,0,40,10],[32,0,32,10],[34,0,34,10],[27,0,27,10],[33,0,33,10],[29,0,29,10],[35,0,35,10],[36,0,36,10],[37,0,37,10],[38,0,38,10],[30,0,30,10],[39,0,39,10],[31,0,31,10],[28,0,28,10],[0,0,1,8],[4,5,4,8],[0,9,0,10],[1,9,1,10],[4,9,4,10],[2,0,2,10],[3,0,3,10],[4,0,4,4],[5,9,5,10],[5,5,5,8],[23,0,23,6],[23,7,23,10],[5,0,5,4],[22,0,22,6],[22,7,22,10]]}
["PROPOSTA FINANCEIRA DO PROJETO",{"$nulls":8},"CODIGO:"]
[{"$nulls":9},"PFP"]
["NOME DA CONSULTORA:"]
[]
["PROJETO:",{"$nulls":4},"CONTRATANTE:",null,null,null,"BASE: Nov/2023"]
["DIAGNÓSTICO E READEQUAÇÃO DE PROJETO BÁSICO PARA CONCLUSÃO DO SISTEMA DE ABASTECIMENTO DE ÁGUA PARA CONSUMO HUMANO EM COMUNIDADES DIFUSAS DO MUNICÍPIO DE PÃO DE AÇÚCAR,  NO ESTADO DE ALAGOAS.",{"$nulls":4},"5ª SUPERINTENDÊNCIA REGIONAL DA CODEVASF",null,null,null,"PROP: Nov/2023\nCODEVASF: fev/2020\nSICRO/AL: Julho/2023\nEMBASA: Maio/2023\nORSE: Set/2023\nSINAPI: Set/2023",null,"\n\n\n\n"]
["Base","Cod2","Cod3","Categoria / Insumo","Uni","Qde","CUD","PU","FatorK","CT","PT"]
["SICRO","MO3","P0","Engenheiro coordenador (P8061)","mês",0.5,null,{"$f":"ROUND(I8*G8,2)","v":0},{"$f":"PFP2.3_FatorKc!E36","v":1.4178999999999999},{"$f":"ROUND(F8*G8,2)","v":0},{"$f":"ROUND(F8*H8,2)","v":0}]
["SICRO","MO2","P1","Engenheiro sênior (P8067)","mês",0.5,null,0,{"$f":"PFP2.2_FatorKb!E36","v":1.6645000000000001},0,0]
["SICRO","MO1","P2","Engenheiro pleno (P8066)","mês",2,null,{"$f":"ROUND(I10*G10,2)","v":0},{"$f":"PFP2.1_FatorKa!$E$36","v":2.2776000000000001},{"$f":"ROUND(F10*G10,2)","v":0},0]
["SICRO","MO1","P3","Engenheiro júnior (P8065)","mês",2,null,{"$f":"ROUND(I11*G11,2)","v":0},{"$f":"PFP2.1_FatorKa!$E$36","v":2.2776000000000001},{"$f":"ROUND(F11*G11,2)","v":0},0]
["SICRO","MO1","T1","Técnico de projetos/obra (P8147)","mês",3,null,0,{"$f":"PFP2.1_FatorKa!$E$36","v":2.2776000000000001},0,0]
["SICRO","EC","ECA","Encargos Comp. e Adicionais","mês",{"$f":"SUM(F9:F12)","v":7.5},null,0,{"$f":"PFP3_FatorKd!$E$17","v":1.2329000000000001},{"$f":"ROUND(F13*G13,2)","v":0},{"$f":"ROUND(F13*H13,2)","v":0}]
["SICRO","EC","AT2","Auxilio Transporte Técnicos","mês",{"$f":"F12","v":3},null,{"$f":"ROUND(I14*G14,2)","v":0},{"$f":"PFP3_FatorKd!$E$17","v":1.2329000000000001},{"$f":"ROUND(F14*G14,2)","v":0},{"$f":"ROUND(F14*H14,2)","v":0}]
["CODE","LO","V1","Diárias","dia",40,null,0,{"$f":"PFP3_FatorKd!$E$17","v":1.2329000000000001},0,0]
["PROP","LO","V2","Pick-up cabine dupla 4x4, com ar-condicionado, incluindo despesas com combustível, óleos, conservação e manutenção","dia",10,{"$f":"'CCU VEÍCULO'!D53","v":0},0,{"$f":"PFP3_FatorKd!$E$17","v":1.2329000000000001},0,0]
["CODE","EM","M1","Relatório Parcial","un",3,null,0,{"$f":"PFP3_FatorKd!$E$17","v":1.2329000000000001},0,{"$f":"ROUND(F17*H17,2)","v":0}]
["CODE","EM","M2","Relatório Final","un",1,null,0,{"$f":"PFP3_FatorKd!$E$17","v":1.2329000000000001},0,0]
["CODE","SU","TOP","Total Serviços Topográficos","un",1,"-",{"$f":"PFP1.1_Topo!G16","v":0},"-","-",0]
["CODE","SU","TÉC","Total Serviços Técnicos","un",1,"-",{"$f":"PFP1.2_Téc!G12","v":0},"-","-",0]
["CODE","SU","GEO","Total Serviços Geotécnicos","un",1,"-",{"$f":"PFP1.3_Geo!G14","v":0},"-","-",0]
["CODE","SU","AMB","Total Serviços Ambientais","un",1,"-",{"$f":"PFP1.4_Amb!G38","v":0},"-","-",0]
["TOTAL DOS CUSTOS DIRETOS",{"$nulls":6},{"$f":"SUM(J8:J22)","v":0}]
["TOTAL DOS ENCARGOS E DISPESAS DIVERSAS",{"$nulls":6},{"$f":"H25-H23","v":0}]
["TOTAL DA PROPOSTA A PREÇO GLOBAL",{"$nulls":6},{"$f":"SUM(K8:K18)","v":0}]
["TOTAL DA PROPOSTA A PREÇO UNITÁRIO",{"$nulls":6},{"$f":"SUM(K19:K22)","v":0}]
["TOTAL DA PROPOSTA",{"$nulls":6},{"$f":"H25+H26","v":0}]
["OBSERVAÇÃO:"]
["Alocar os Insumos MO, com respectivo FatorK, dentro da categoria de vínculo contratual (celetista, autonomo, societario)"]
["Uni - unidade de medição do insumo;"]
["Qde - Quantidade do Insumo (não pode ocorrer alteração pela Licitante)"]
["CUD - Custo Unitário Direto do Insumo (sem encargos, taxas e impostos, valor não pode ser maior que o Orçado pela Codevasf)"]
["CT - Custo Total (sem encargos, taxas e impostos) - CT = Qde x CUD"]
["FatorK - Taxa de Ressarcimento de Despesas e Encargos (detalhar composição nas Planilhas \"PFP2.1\", \"PFP2.2\", \"PFP3\")"]
["PU - Preço Unitário do Insumo (incluído encargos, taxas e impostos) - PU = CUD x FatorK"]
["PT - Preço Total do Insumo (incluído encargos, taxas e impostos) - PT = Qde x PU"]
["P - Profissionais nível superior nas áreas de Engenharia, Química, Arquitetura, Agronomia e Veterinária, conforme disposições da Lei 4.950-A/66"]
["S - Profissionais de nível superior nas demais áreas de atuação, incluindo Arqueólogo, Biólogo, Geógrafo e Sociólogo"]
["T - Profissionais de nível médio técnico nas diversas áreas de atuação"]
["A - Profissionais de nível médio de apoio técnico-administrativo"]
["Encargos complementares e adicionais contempla: alimentação, EPI, assistência médica, seguro de vida e exame ocupacional."]

{"sheet":"PFP1.1_Topo","index":1,"n_rows":105,"n_cols":7,"rows_kept":105,"cut":false,"hidden":false,"merged":[[19,0,19,6],[20,0,20,6],[16,0,16,6],[17,0,17,6],[18,0,18,6],[4,0,4,3],[2,0,2,6],[3,0,3,6],[15,0,15,5],[0,0,1,5],[5,0,5,3],[4,4,4,5],[5,4,5,5]]}
["SERVIÇOS TOPOGRÁFICOS/CARTOGRÁFICOS",{"$nulls":5},"CODIGO:"]
[{"$nulls":6},"PFP-1.1"]
["NOME DA EMPRESA:"]
[]
["PROJETO:",null,null,null,"CONTRATANTE:",null,{"$f":"PFP!J5","v":"BASE: Nov/2023"}]
[{"$f":"PFP!A6","v":"DIAGNÓSTICO E READEQUAÇÃO DE PROJETO BÁSICO PARA CONCLUSÃO DO SISTEMA DE ABASTECIMENTO DE ÁGUA PARA CONSUMO HUMANO EM COMUNIDADES DIFUSAS DO MUNICÍPIO DE PÃO DE AÇÚCAR,  NO ESTADO DE ALAGOAS."},null,null,null,{"$f":"PFP!F6","v":"5ª SUPERINTENDÊNCIA REGIONAL DA CODEVASF"},null,{"$f":"PFP!J6","v":"PROP: Nov/2023\nCODEVASF: fev/2020\nSICRO/AL: Julho/2023\nEMBASA: Maio/2023\nORSE: Set/2023\nSINAPI: Set/2023"}]
["Cod.","Base","Insumos","Uni","Qde","Preço Unitário (PU)","Preço Total (PT)"]
["COTAÇÃO","COTAÇÃO","Serviço de aerofotogrametria com aeronave devidamente homologada pela Agência Nacional de Aviação Civil (ANAC), na categoria de Serviço Aéreo Especializado (SAE),para a geração das ortofotos (fotos aéreas georreferenciadas e corrigidas de distorções do relevo e acidentes geográficos)","ha ",5,null,{"$f":"ROUND(F8*E8,2)","v":0}]
["COTAÇÃO","COTAÇÃO","Geração de Nuvem de pontos bruta (sem classificação)","ha ",5,null,0]
["COTAÇÃO","COTAÇÃO","Nuvem de pontos classificada, modelo digital de terreno e modelo digital de superfície","ha ",5,null,0]
["TP19","CODE","Pontos GPS de dupla frequência (L1/L2)","km",3,null,0]
["TP27","CODE","Marco de Concreto (12x18x60cm)","un",{"$f":"E11","v":3},null,0]
["TP28","CODE","Estaca Testemunha de Madeira (2x4x70cm)","un",50,null,0]
["TP29","CODE","Piquetes de Madeira (2x2x20cm)","un",500,null,0]
["PD06","CODE","Picada Manual p/ levantamento TP","km",5,null,0]
["TOTAL SERVIÇOS TOPOGRÁFICOS",{"$nulls":5},{"$f":"SUM(G8:G15)","v":0}]
["OBSERVAÇÃO:"]
["Uni - unidade de medição do insumo;"]
["Qde - Quantidade do Insumo (não pode ocorrer alteração pela Licitante)"]
["PU - Preço Unitário (tal qual as composições padrão da Codevasf, já incluso o fator K / BDI de 20,32%)"]
["PT - Preço Total (incluído encargos, taxas e impostos) - PT = Qde x PU"]
[]
[]
[]
[]
[{"$nulls":5},40]
[{"$nulls":5},{"$f":"F26/8","v":5}]
{"$rows_empty":77}
[{"$nulls":5},{"$f":"G16/30","v":0}]

{"sheet":"PFP1.2_Téc","index":2,"n_rows":129,"n_cols":7,"rows_kept":129,"cut":false,"hidden":false,"merged":[[11,0,11,5],[15,0,15,6],[5,0,5,3],[5,4,5,5],[16,0,16,6],[12,0,12,6],[13,0,13,6],[14,0,14,6],[4,0,4,3],[4,4,4,5],[2,0,2,6],[3,0,3,6],[0,0,1,5]]}
["SERVIÇOS TÉCNICOS",{"$nulls":5},"CODIGO:"]
[{"$nulls":6},"PFP-1.2"]
["NOME DA EMPRESA:"]
[]
["PROJETO:",null,null,null,"CONTRATANTE:",null,{"$f":"PFP!J5","v":"BASE: Nov/2023"}]
[{"$f":"PFP!A6","v":"DIAGNÓSTICO E READEQUAÇÃO DE PROJETO BÁSICO PARA CONCLUSÃO DO SISTEMA DE ABASTECIMENTO DE ÁGUA PARA CONSUMO HUMANO EM COMUNIDADES DIFUSAS DO MUNICÍPIO DE PÃO DE AÇÚCAR,  NO ESTADO DE ALAGOAS."},null,null,null,{"$f":"PFP!F6","v":"5ª SUPERINTENDÊNCIA REGIONAL DA CODEVASF"},null,{"$f":"PFP!J6","v":"PROP: Nov/2023\nCODEVASF: fev/2020\nSICRO/AL: Julho/2023\nEMBASA: Maio/2023\nORSE: Set/2023\nSINAPI: Set/2023"}]
["Cod.","Base","Insumos","Uni","Qde","Preço Unitário (PU)","Preço Total (PT)"]
[6098,"ORSE","Cadastro de redes de água/adutora","m",17000,null,{"$f":"ROUND(F8*E8,2)","v":0}]
[4673,"ORSE","Batimetria com seções transversais","km",1,null,0]
[2829,"ORSE","Limpeza, desinfecção e teste de redes de abastecimento de água","m",17000,null,0]
[13583,"ORSE","Levantamento cadastral de áreas (ETA e 3 estações elevatórias)","m2",2800,null,{"$f":"ROUND(F11*E11,2)","v":0}]
["TOTAL SERVIÇOS GEOTÉCNICOS",{"$nulls":5},{"$f":"SUM(G8:G11)","v":0}]
["LEGENDA:"]
["Uni - unidade de medição do insumo;"]
["Qde - Quantidade do Insumo (não pode ocorrer alteração pela Licitante)"]
["PU - Preço Unitário (tal qual as composições padrão da Codevasf, já incluso o fator K / BDI de 20,32%)"]
["PT - Preço Total (incluído encargos, taxas e impostos) - PT = Qde x PU"]
{"$rows_empty":111}
[{"$nulls":5},{"$f":"G12/30","v":0}]

{"sheet":"PFP1.3_Geo","index":3,"n_rows":19,"n_cols":7,"rows_kept":19,"cut":false,"hidden":false,"merged":[[16,0,16,6],[17,0,17,6],[18,0,18,6],[5,0,5,3],[5,4,5,5],[13,0,13,5],[14,0,14,6],[15,0,15,6],[0,0,1,5],[2,0,2,6],[3,0,3,6],[4,0,4,3],[4,4,4,5]]}
["SERVIÇOS GEOLÓGICOS/GEOTÉCNICOS",{"$nulls":5},"CODIGO:"]
[{"$nulls":6},"PFP-1.2"]
["NOME DA EMPRESA:"]
[]
["PROJETO:",null,null,null,"CONTRATANTE:",null,{"$f":"PFP!J5","v":"BASE: Nov/2023"}]
[{"$f":"PFP!A6","v":"DIAGNÓSTICO E READEQUAÇÃO DE PROJETO BÁSICO PARA CONCLUSÃO DO SISTEMA DE ABASTECIMENTO DE ÁGUA PARA CONSUMO HUMANO EM COMUNIDADES DIFUSAS DO MUNICÍPIO DE PÃO DE AÇÚCAR,  NO ESTADO DE ALAGOAS."},null,null,null,{"$f":"PFP!F6","v":"5ª SUPERINTENDÊNCIA REGIONAL DA CODEVASF"},null,{"$f":"PFP!J6","v":"PROP: Nov/2023\nCODEVASF: fev/2020\nSICRO/AL: Julho/2023\nEMBASA: Maio/2023\nORSE: Set/2023\nSINAPI: Set/2023"}]
["Cod.","Base","Insumos","Uni","Qde","Preço Unitário (PU)","Preço Total (PT)"]
["GT07","CODE","Sondagem Percussão: (Des)Mobilização","un",2,null,{"$f":"ROUND(F8*E8,2)","v":0}]
["GT08","CODE","Sondagem Percursão: com SPT","m",6,null,0]
["GT09","CODE","Sondagem Percursão: Desloc/Instalação 0-200 m","un",1,null,0]
["GT10","CODE","Sondagem Percursão: Desloc/Instalação 201-500 m","un",1,null,0]
["GT11","CODE","Sondagem Percursão: Desloc/Instalação >500 m","un",1,null,0]
["GT13","CODE","Sondagem Trado 4''","m",150,null,0]
["TOTAL SERVIÇOS GEOTÉCNICOS",{"$nulls":5},{"$f":"SUM(G8:G13)","v":0}]
["LEGENDA:"]
["Uni - unidade de medição do insumo;"]
["Qde - Quantidade do Insumo (não pode ocorrer alteração pela Licitante)"]
["PU - Preço Unitário (composições padrão da Codevasf, já incluso o FatorK)"]
["PT - Preço Total (incluído encargos, taxas e impostos) - PT = Qde x PU"]

{"sheet":"PFP1.4_Amb","index":4,"n_rows":43,"n_cols":7,"rows_kept":43,"cut":false,"hidden":false,"merged":[[42,0,42,6],[0,0,1,5],[2,0,2,6],[3,0,3,6],[4,0,4,3],[4,4,4,5],[5,0,5,3],[5,4,5,5],[37,0,37,5],[38,0,38,6],[39,0,39,6],[40,0,40,6],[41,0,41,6]]}
["SERVIÇOS ANÁLISE AMBIENTAL",{"$nulls":5},"CODIGO:"]
[{"$nulls":6},"PFP-1.3"]
["NOME DA EMPRESA:"]
[]
["PROJETO:",null,null,null,"CONTRATANTE:",null,{"$f":"PFP!J5","v":"BASE: Nov/2023"}]
[{"$f":"PFP!A6","v":"DIAGNÓSTICO E READEQUAÇÃO DE PROJETO BÁSICO PARA CONCLUSÃO DO SISTEMA DE ABASTECIMENTO DE ÁGUA PARA CONSUMO HUMANO EM COMUNIDADES DIFUSAS DO MUNICÍPIO DE PÃO DE AÇÚCAR,  NO ESTADO DE ALAGOAS."},null,null,null,{"$f":"PFP!F6","v":"5ª SUPERINTENDÊNCIA REGIONAL DA CODEVASF"},null,{"$f":"PFP!J6","v":"PROP: Nov/2023\nCODEVASF: fev/2020\nSICRO/AL: Julho/2023\nEMBASA: Maio/2023\nORSE: Set/2023\nSINAPI: Set/2023"}]
["Cod.","Base","Insumos","Uni","Qde","Preço Unitário (PU)","Preço Total (PT)"]
["F099703036","Embasa","Alcalinidade Total","un",1,null,{"$f":"ROUND(E8*F8,2)","v":0}]
["F099703032","Embasa","Condutividade","un",1,null,{"$f":"ROUND(E9*F9,2)","v":0}]
["F099703035","Embasa","DBO","un",1,null,0]
["33.01.14","Embasa","DQO","un",1,null,0]
["F099703031","Embasa","Salinidade","un",1,null,0]
["33.01.44","Embasa","Sólidos Dissolvidos Totais","un",1,null,0]
["33.01.46","Embasa","Sólidos Suspensos","un",1,null,0]
["33.01.48","Embasa","Sólidos Totais","un",1,null,0]
["F099703034","Embasa","Turbidez","un",1,null,0]
["33.01.38","Embasa","Oxigênio Dissolvido","un",1,null,0]
["F099703028","Embasa","pH","un",1,null,0]
["F099703027","Embasa","Temperatura","un",1,null,0]
["33.01.23","Embasa","Fósforo Total","un",1,null,0]
["33.01.30","Embasa","Nitrogênio Amoniacal","un",1,null,0]
["33.01.33","Embasa","Nitrogênio Nitrato","un",1,null,0]
["33.01.32","Embasa","Nitrogênio Total","un",1,null,0]
["F099703058","Embasa","Clorofila A","un",1,null,0]
["F099703057","Embasa","Coliformes Termotolerantes","un",1,null,0]
[" F099703064","Embasa","Metais Pesados - Alumínio","un",1,null,{"$f":"ROUND(E26*F26,2)","v":0}]
[" F099703061","Embasa","Metais Pesados - Arsênio","un",1,null,0]
[" F099703063","Embasa","Metais Pesados - Bário","un",1,null,{"$f":"ROUND(E28*F28,2)","v":0}]
["F099703068","Embasa","Metais Pesados - Cadmio","un",1,null,0]
["F099703070","Embasa","Metais Pesados - Chumbo","un",1,null,0]
["F099703066","Embasa","Metais Pesados - Cromo","un",1,null,0]
[" F099703062","Embasa","Metais Pesados - Ferro","un",1,null,0]
["F099703065","Embasa","Metais Pesados - Manganês","un",1,null,0]
[" F099703069","Embasa","Metais Pesados - Mercúrio","un",1,null,0]
["F099703067","Embasa","Metais Pesados - Zinco","un",1,null,0]
["33.01.40","Embasa","Organoclorados","un",1,null,0]
["33.01.40","Embasa","Organofosforado","un",1,null,{"$f":"ROUND(E37*F37,2)","v":0}]
["TOTAL SERVIÇOS ANÁLISE AMBIENTAL",{"$nulls":5},{"$f":"SUM(G8:G37)","v":0}]
["LEGENDA:"]
["Uni - unidade de medição do insumo;"]
["Qde - Quantidade do Insumo (não pode ocorrer alteração pela Licitante)"]
["PU - Preço Unitário (já incluso BDI de 20,32%, tal qual as composições padrão da Codevasf)"]
["PT - Preço Total (incluído encargos, taxas e impostos) - PT = Qde x PU"]

{"sheet":"PFP2.1_FatorKa","index":5,"n_rows":41,"n_cols":6,"rows_kept":41,"cut":false,"hidden":false,"merged":[[40,0,40,5],[39,0,39,5],[38,0,38,5],[37,0,37,5],[22,1,22,3],[29,1,29,3],[30,1,30,3],[28,1,28,3],[25,1,25,3],[26,1,26,3],[27,1,27,3],[33,1,33,3],[31,1,31,3],[16,1,16,3],[9,1,9,3],[10,1,10,3],[11,1,11,3],[12,1,12,3],[0,0,1,4],[2,0,2,5],[5,0,5,1],[5,2,5,4],[4,2,4,4],[3,0,3,5],[6,1,6,3],[32,1,32,3],[34,1,34,3],[35,1,35,3],[18,1,18,3],[19,1,19,3],[20,1,20,3],[21,1,21,3],[23,1,23,3],[24,1,24,3],[7,1,7,3],[17,1,17,3],[8,1,8,3],[13,1,13,3],[14,1,14,3],[15,1,15,3]]}
["DETALHAMENTO DOS ENCARGOS SOCIAIS: Ka",{"$nulls":4},"CODIGO:"]
[{"$nulls":5},"PFP-2.1"]
["NOME DA CONSULTORA:"]
[]
["PROJETO:",null,"CONTRATANTE:",null,null,{"$f":"PFP!J5","v":"BASE: Nov/2023"}]
[{"$f":"PFP!A6","v":"DIAGNÓSTICO E READEQUAÇÃO DE PROJETO BÁSICO PARA CONCLUSÃO DO SISTEMA DE ABASTECIMENTO DE ÁGUA PARA CONSUMO HUMANO EM COMUNIDADES DIFUSAS DO MUNICÍPIO DE PÃO DE AÇÚCAR,  NO ESTADO DE ALAGOAS."},null,{"$f":"PFP!F6","v":"5ª SUPERINTENDÊNCIA REGIONAL DA CODEVASF"},null,null,{"$f":"PFP!J6","v":"PROP: Nov/2023\nCODEVASF: fev/2020\nSICRO/AL: Julho/2023\nEMBASA: Maio/2023\nORSE: Set/2023\nSINAPI: Set/2023"}]
["Cod","DESCRIÇÃO",null,null,"%","R$"]
["A","ENCARGOS SOCIAIS BÁSICOS",null,null,{"$f":"ROUND(SUM(E9:E17),4)","v":0.36799999999999999},{"$f":"ROUND(E8*SUMIF(PFP!$B$8:$B$20,\"MO1\",PFP!$J$8:$J$20),2)","v":0}]
["A1","INSS",null,null,0.2,{"$f":"ROUND(E9*SUMIF(PFP!$B$8:$B$20,\"MO1\",PFP!$J$8:$J$20),2)","v":0}]
["A2","SESI",null,null,1.4999999999999999E-2,{"$f":"ROUND(E10*SUMIF(PFP!$B$8:$B$20,\"MO1\",PFP!$J$8:$J$20),2)","v":0}]
["A3","SENAI",null,null,0.01,{"$f":"ROUND(E11*SUMIF(PFP!$B$8:$B$20,\"MO1\",PFP!$J$8:$J$20),2)","v":0}]
["A4","INCRA",null,null,2E-3,{"$f":"ROUND(E12*SUMIF(PFP!$B$8:$B$20,\"MO1\",PFP!$J$8:$J$20),2)","v":0}]
["A5","SEBRAE",null,null,6.0000000000000001E-3,{"$f":"ROUND(E13*SUMIF(PFP!$B$8:$B$20,\"MO1\",PFP!$J$8:$J$20),2)","v":0}]
["A6","Salário Educação",null,null,2.5000000000000001E-2,{"$f":"ROUND(E14*SUMIF(PFP!$B$8:$B$20,\"MO1\",PFP!$J$8:$J$20),2)","v":0}]
["A7","Seguro Contra Acidentes de Trabalho",null,null,0.03,{"$f":"ROUND(E15*SUMIF(PFP!$B$8:$B$20,\"MO1\",PFP!$J$8:$J$20),2)","v":0}]
["A8","FGTS",null,null,0.08,{"$f":"ROUND(E16*SUMIF(PFP!$B$8:$B$20,\"MO1\",PFP!$J$8:$J$20),2)","v":0}]
["A9","SECONCI",null,null,null,{"$f":"ROUND(E17*SUMIF(PFP!$B$8:$B$20,\"MO1\",PFP!$J$8:$J$20),2)","v":0}]
["B"," ENCARGOS SOCIAIS QUE RECEBEM INCIDÊNCIA DE \"A\"",null,null,{"$f":"ROUND(SUM(E19:E25),4)","v":0.16089999999999999},{"$f":"ROUND(E18*SUMIF(PFP!$B$8:$B$20,\"MO1\",PFP!$J$8:$J$20),2)","v":0}]
["B3","Auxílio Enfermidade",null,null,6.6E-3,{"$f":"ROUND(E19*SUMIF(PFP!$B$8:$B$20,\"MO1\",PFP!$J$8:$J$20),2)","v":0}]
["B4","13º Salário",null,null,8.3299999999999999E-2,{"$f":"ROUND(E20*SUMIF(PFP!$B$8:$B$20,\"MO1\",PFP!$J$8:$J$20),2)","v":0}]
["B5","Licença Paternidade",null,null,5.9999999999999995E-4,{"$f":"ROUND(E21*SUMIF(PFP!$B$8:$B$20,\"MO1\",PFP!$J$8:$J$20),2)","v":0}]
["B6","Faltas Justificadas",null,null,5.5999999999999999E-3,{"$f":"ROUND(E22*SUMIF(PFP!$B$8:$B$20,\"MO1\",PFP!$J$8:$J$20),2)","v":0}]
["B8","Auxílio Acidente de Trabalho",null,null,8.0000000000000004E-4,{"$f":"ROUND(E23*SUMIF(PFP!$B$8:$B$20,\"MO1\",PFP!$J$8:$J$20),2)","v":0}]
["B9","Férias Gozadas",null,null,6.3799999999999996E-2,{"$f":"ROUND(E24*SUMIF(PFP!$B$8:$B$20,\"MO1\",PFP!$J$8:$J$20),2)","v":0}]
["B10","Salário Maternidade",null,null,2.0000000000000001E-4,{"$f":"ROUND(E25*SUMIF(PFP!$B$8:$B$20,\"MO1\",PFP!$J$8:$J$20),2)","v":0}]
["C"," ENCARGOS SOCIAIS QUE NÃO RECEBEM INCIDÊNCIA DE \"A\"",null,null,{"$f":"ROUND(SUM(E27:E31),4)","v":0.106},{"$f":"ROUND(E26*SUMIF(PFP!$B$8:$B$20,\"MO1\",PFP!$J$8:$J$20),2)","v":0}]
["C1","Aviso Prévio Indenizado",null,null,3.6200000000000003E-2,{"$f":"ROUND(E27*SUMIF(PFP!$B$8:$B$20,\"MO1\",PFP!$J$8:$J$20),2)","v":0}]
["C2","Aviso Prévio Trabalhado",null,null,8.9999999999999998E-4,{"$f":"ROUND(E28*SUMIF(PFP!$B$8:$B$20,\"MO1\",PFP!$J$8:$J$20),2)","v":0}]
["C3","Férias Indenizadas",null,null,3.8300000000000001E-2,{"$f":"ROUND(E29*SUMIF(PFP!$B$8:$B$20,\"MO1\",PFP!$J$8:$J$20),2)","v":0}]
["C4","Depósito Rescisão Sem Justa Causa",null,null,2.76E-2,{"$f":"ROUND(E30*SUMIF(PFP!$B$8:$B$20,\"MO1\",PFP!$J$8:$J$20),2)","v":0}]
["C5","Indenização Adicional",null,null,3.0000000000000001E-3,{"$f":"ROUND(E31*SUMIF(PFP!$B$8:$B$20,\"MO1\",PFP!$J$8:$J$20),2)","v":0}]
["D"," REINCIDÊNCIAS",null,null,{"$f":"ROUND(SUM(E33:E34),4)","v":6.2399999999999997E-2},{"$f":"ROUND(E32*SUMIF(PFP!$B$8:$B$20,\"MO1\",PFP!$J$8:$J$20),2)","v":0}]
["D1","Reincidência de \"A\" sobre \"B\"",null,null,{"$f":"ROUND(E8*E18,4)","v":5.9200000000000003E-2},{"$f":"ROUND(E33*SUMIF(PFP!$B$8:$B$20,\"MO1\",PFP!$J$8:$J$20),2)","v":0}]
["D2","Reincidência de \"A\" sobre Aviso Prévio Trabalhado e reincidência do FGTS sobre Aviso Prévio Indenizado",null,null,{"$f":"ROUND((E28*E8)+(E27*E16),4)","v":3.2000000000000002E-3},{"$f":"ROUND(E34*SUMIF(PFP!$B$8:$B$20,\"MO1\",PFP!$J$8:$J$20),2)","v":0}]
["K1a","ENCARGOS SOCIAIS",null,null,{"$f":"ROUND(E8+E18+E26+E32,4)","v":0.69730000000000003},{"$f":"ROUND(E35*SUMIF(PFP!$B$8:$B$20,\"MO1\",PFP!$J$8:$J$20),2)","v":0}]
["Ka","TAXA DE RESSARCIMENTO DE DESPESAS E ENCARGOS SOBRE MO1",null,null,{"$f":"ROUND((1+E35+PFP3_FatorKd!E13)*(1+PFP3_FatorKd!E12)*(1+PFP3_FatorKd!E8),4)","v":2.2776000000000001}]
["OBSERVAÇÃO: CELETISTAS E EQUIVALENTES"]
["1 - DISCRIMINAR OS ENCARGOS SOCIAIS COM SEUS RESPECTIVOS PERCENTUAS TOTALIZANDO OS MESMOS. "]
["2 - APLICAR O  % TOTAL P/ CALCULAR OS E. SOCIAIS INCIDENTES NA MÃO-DE-OBRA CELETISTAS"]
["Ka - Taxa de Ressarcimento de Despesas e Encargos sobre a Mão de Obra CELETISTA (incide apenas no Insumo Codigo MO1)"]
["Ka = (1 + K1 + K2) x (1 + K3) x (1 + K4)"]

{"sheet":"PFP2.2_FatorKb","index":6,"n_rows":41,"n_cols":6,"rows_kept":41,"cut":false,"hidden":false,"merged":[[13,1,13,3],[14,1,14,3],[15,1,15,3],[11,1,11,3],[31,1,31,3],[20,1,20,3],[21,1,21,3],[22,1,22,3],[23,1,23,3],[24,1,24,3],[25,1,25,3],[26,1,26,3],[27,1,27,3],[28,1,28,3],[29,1,29,3],[30,1,30,3],[40,0,40,5],[37,0,37,5],[38,0,38,5],[39,0,39,5],[32,1,32,3],[33,1,33,3],[34,1,34,3],[35,1,35,3],[19,1,19,3],[0,0,1,4],[2,0,2,5],[3,0,3,5],[4,2,4,4],[5,0,5,1],[5,2,5,4],[7,1,7,3],[17,1,17,3],[18,1,18,3],[8,1,8,3],[9,1,9,3],[10,1,10,3],[16,1,16,3],[6,1,6,3],[12,1,12,3]]}
["DETALHAMENTO DOS ENCARGOS SOCIAIS: Kb",{"$nulls":4},"CODIGO:"]
[{"$nulls":5},"PFP-2.2"]
["NOME DA CONSULTORA:"]
[]
["PROJETO:",null,"CONTRATANTE:",null,null,{"$f":"PFP!J5","v":"BASE: Nov/2023"}]
[{"$f":"PFP!A6","v":"DIAGNÓSTICO E READEQUAÇÃO DE PROJETO BÁSICO PARA CONCLUSÃO DO SISTEMA DE ABASTECIMENTO DE ÁGUA PARA CONSUMO HUMANO EM COMUNIDADES DIFUSAS DO MUNICÍPIO DE PÃO DE AÇÚCAR,  NO ESTADO DE ALAGOAS."},null,{"$f":"PFP!F6","v":"5ª SUPERINTENDÊNCIA REGIONAL DA CODEVASF"},null,null,{"$f":"PFP!J6","v":"PROP: Nov/2023\nCODEVASF: fev/2020\nSICRO/AL: Julho/2023\nEMBASA: Maio/2023\nORSE: Set/2023\nSINAPI: Set/2023"}]
["Cod","DESCRIÇÃO",null,null,"%","R$"]
["A","ENCARGOS SOCIAIS BÁSICOS",null,null,{"$f":"ROUND(SUM(E9:E17),4)","v":0.2},{"$f":"ROUND(E8*SUMIF(PFP!$B$8:$B$20,\"MO2\",PFP!$J$8:$J$20),2)","v":0}]
["A1","INSS",null,null,0.2,{"$f":"ROUND(E9*SUMIF(PFP!$B$8:$B$20,\"MO2\",PFP!$J$8:$J$20),2)","v":0}]
["A2","SESI",null,null,null,{"$f":"ROUND(E10*SUMIF(PFP!$B$8:$B$20,\"MO2\",PFP!$J$8:$J$20),2)","v":0}]
["A3","SENAI",null,null,null,{"$f":"ROUND(E11*SUMIF(PFP!$B$8:$B$20,\"MO2\",PFP!$J$8:$J$20),2)","v":0}]
["A4","INCRA",null,null,null,{"$f":"ROUND(E12*SUMIF(PFP!$B$8:$B$20,\"MO2\",PFP!$J$8:$J$20),2)","v":0}]
["A5","SEBRAE",null,null,null,{"$f":"ROUND(E13*SUMIF(PFP!$B$8:$B$20,\"MO2\",PFP!$J$8:$J$20),2)","v":0}]
["A6","Salário Educação",null,null,null,{"$f":"ROUND(E14*SUMIF(PFP!$B$8:$B$20,\"MO2\",PFP!$J$8:$J$20),2)","v":0}]
["A7","Seguro Contra Acidentes de Trabalho",null,null,null,{"$f":"ROUND(E15*SUMIF(PFP!$B$8:$B$20,\"MO2\",PFP!$J$8:$J$20),2)","v":0}]
["A8","FGTS",null,null,null,{"$f":"ROUND(E16*SUMIF(PFP!$B$8:$B$20,\"MO2\",PFP!$J$8:$J$20),2)","v":0}]
["A9","SECONCI",null,null,null,{"$f":"ROUND(E17*SUMIF(PFP!$B$8:$B$20,\"MO2\",PFP!$J$8:$J$20),2)","v":0}]
["B"," ENCARGOS SOCIAIS QUE RECEBEM INCIDÊNCIA DE \"A\"",null,null,{"$f":"ROUND(SUM(E19:E25),4)","v":0},{"$f":"ROUND(E18*SUMIF(PFP!$B$8:$B$20,\"MO2\",PFP!$J$8:$J$20),2)","v":0}]
["B3","Auxílio Enfermidade",null,null,null,{"$f":"ROUND(E19*SUMIF(PFP!$B$8:$B$20,\"MO2\",PFP!$J$8:$J$20),2)","v":0}]
["B4","13º Salário",null,null,null,{"$f":"ROUND(E20*SUMIF(PFP!$B$8:$B$20,\"MO2\",PFP!$J$8:$J$20),2)","v":0}]
["B5","Licença Paternidade",null,null,null,{"$f":"ROUND(E21*SUMIF(PFP!$B$8:$B$20,\"MO2\",PFP!$J$8:$J$20),2)","v":0}]
["B6","Faltas Justificadas",null,null,null,{"$f":"ROUND(E22*SUMIF(PFP!$B$8:$B$20,\"MO2\",PFP!$J$8:$J$20),2)","v":0}]
["B8","Auxílio Acidente de Trabalho",null,null,null,{"$f":"ROUND(E23*SUMIF(PFP!$B$8:$B$20,\"MO2\",PFP!$J$8:$J$20),2)","v":0}]
["B9","Férias Gozadas",null,null,null,{"$f":"ROUND(E24*SUMIF(PFP!$B$8:$B$20,\"MO2\",PFP!$J$8:$J$20),2)","v":0}]
["B10","Salário Maternidade",null,null,null,{"$f":"ROUND(E25*SUMIF(PFP!$B$8:$B$20,\"MO2\",PFP!$J$8:$J$20),2)","v":0}]
["C"," ENCARGOS SOCIAIS QUE NÃO RECEBEM INCIDÊNCIA DE \"A\"",null,null,{"$f":"ROUND(SUM(E27:E31),4)","v":0},{"$f":"ROUND(E26*SUMIF(PFP!$B$8:$B$20,\"MO2\",PFP!$J$8:$J$20),2)","v":0}]
["C1","Aviso Prévio Indenizado",null,null,null,{"$f":"ROUND(E27*SUMIF(PFP!$B$8:$B$20,\"MO2\",PFP!$J$8:$J$20),2)","v":0}]
["C2","Aviso Prévio Trabalhado",null,null,null,{"$f":"ROUND(E28*SUMIF(PFP!$B$8:$B$20,\"MO2\",PFP!$J$8:$J$20),2)","v":0}]
["C3","Férias Indenizadas",null,null,null,{"$f":"ROUND(E29*SUMIF(PFP!$B$8:$B$20,\"MO2\",PFP!$J$8:$J$20),2)","v":0}]
["C4","Depósito Rescisão Sem Justa Causa",null,null,null,{"$f":"ROUND(E30*SUMIF(PFP!$B$8:$B$20,\"MO2\",PFP!$J$8:$J$20),2)","v":0}]
["C5","Indenização Adicional",null,null,null,{"$f":"ROUND(E31*SUMIF(PFP!$B$8:$B$20,\"MO2\",PFP!$J$8:$J$20),2)","v":0}]
["D"," REINCIDÊNCIAS",null,null,{"$f":"ROUND(SUM(E33:E34),4)","v":0},{"$f":"ROUND(E32*SUMIF(PFP!$B$8:$B$20,\"MO2\",PFP!$J$8:$J$20),2)","v":0}]
["D1","Reincidência de \"A\" sobre \"B\"",null,null,null,{"$f":"ROUND(E33*SUMIF(PFP!$B$8:$B$20,\"MO2\",PFP!$J$8:$J$20),2)","v":0}]
["D2","Reincidência de \"A\" sobre Aviso Prévio Trabalhado e reincidência do FGTS sobre Aviso Prévio Indenizado",null,null,null,{"$f":"ROUND(E34*SUMIF(PFP!$B$8:$B$20,\"MO2\",PFP!$J$8:$J$20),2)","v":0}]
["K1b","ENCARGOS SOCIAIS",null,null,{"$f":"ROUND(E8+E18+E26+E32,4)","v":0.2},{"$f":"ROUND(E35*SUMIF(PFP!$B$8:$B$20,\"MO2\",PFP!$J$8:$J$20),2)","v":0}]
["Kb","TAXA DE RESSARCIMENTO DE DESPESAS E ENCARGOS SOBRE MO2",null,null,{"$f":"ROUND((1+E35+PFP3_FatorKd!E13)*(1+PFP3_FatorKd!E12)*(1+PFP3_FatorKd!E8),4)","v":1.6645000000000001}]
["OBSERVAÇÃO: AUTÔNOMOS E EQUIVALENTES"]
["1 - DISCRIMINAR OS ENCARGOS SOCIAIS COM SEUS RESPECTIVOS PERCENTUAS TOTALIZANDO OS MESMOS. "]
["2 - APLICAR O % TOTAL P/ CALCULAR OS E. SOCIAIS INCIDENTES NA MÃO-DE-OBRA AUTONÔMOS"]
["Kb - Taxa de Ressarcimento de Despesas e Encargos sobre a Mão de Obra AUTONÔMA (incide apenas no Insumo Codigo MO2)"]
["Kb = (1 + K1 + K2) x (1 + K3) x (1 + K4)"]

{"sheet":"PFP2.3_FatorKc","index":7,"n_rows":41,"n_cols":6,"rows_kept":41,"cut":false,"hidden":false,"merged":[[0,0,1,4],[2,0,2,5],[3,0,3,5],[4,2,4,4],[5,0,5,1],[5,2,5,4],[17,1,17,3],[6,1,6,3],[7,1,7,3],[8,1,8,3],[9,1,9,3],[10,1,10,3],[11,1,11,3],[12,1,12,3],[13,1,13,3],[14,1,14,3],[15,1,15,3],[16,1,16,3],[29,1,29,3],[18,1,18,3],[19,1,19,3],[20,1,20,3],[21,1,21,3],[22,1,22,3],[23,1,23,3],[24,1,24,3],[25,1,25,3],[26,1,26,3],[27,1,27,3],[28,1,28,3],[37,0,37,5],[38,0,38,5],[39,0,39,5],[40,0,40,5],[30,1,30,3],[31,1,31,3],[32,1,32,3],[33,1,33,3],[34,1,34,3],[35,1,35,3]]}
["DETALHAMENTO DOS ENCARGOS SOCIAIS: Kc",{"$nulls":4},"CODIGO:"]
[{"$nulls":5},"PFP-2.3"]
["NOME DA CONSULTORA:"]
[]
["PROJETO:",null,"CONTRATANTE:",null,null,{"$f":"PFP!J5","v":"BASE: Nov/2023"}]
[{"$f":"PFP!A6","v":"DIAGNÓSTICO E READEQUAÇÃO DE PROJETO BÁSICO PARA CONCLUSÃO DO SISTEMA DE ABASTECIMENTO DE ÁGUA PARA CONSUMO HUMANO EM COMUNIDADES DIFUSAS DO MUNICÍPIO DE PÃO DE AÇÚCAR,  NO ESTADO DE ALAGOAS."},null,"CODEVASF (SEDE)",null,null,{"$f":"PFP!J6","v":"PROP: Nov/2023\nCODEVASF: fev/2020\nSICRO/AL: Julho/2023\nEMBASA: Maio/2023\nORSE: Set/2023\nSINAPI: Set/2023"}]
["Cod","DESCRIÇÃO",null,null,"%","R$"]
["A","ENCARGOS SOCIAIS BÁSICOS",null,null,{"$f":"SUM(E9:E17)","v":0},{"$f":"ROUND(E8*SUMIF(PFP!$B$8:$B$20,\"MO3\",PFP!$J$8:$J$20),2)","v":0}]
["A1","INSS",null,null,null,{"$f":"ROUND(E9*SUMIF(PFP!$B$8:$B$20,\"MO3\",PFP!$J$8:$J$20),2)","v":0}]
["A2","SESI",null,null,null,{"$f":"ROUND(E10*SUMIF(PFP!$B$8:$B$20,\"MO3\",PFP!$J$8:$J$20),2)","v":0}]
["A3","SENAI",null,null,null,{"$f":"ROUND(E11*SUMIF(PFP!$B$8:$B$20,\"MO3\",PFP!$J$8:$J$20),2)","v":0}]
["A4","INCRA",null,null,null,{"$f":"ROUND(E12*SUMIF(PFP!$B$8:$B$20,\"MO3\",PFP!$J$8:$J$20),2)","v":0}]
["A5","SEBRAE",null,null,null,{"$f":"ROUND(E13*SUMIF(PFP!$B$8:$B$20,\"MO3\",PFP!$J$8:$J$20),2)","v":0}]
["A6","Salário Educação",null,null,null,{"$f":"ROUND(E14*SUMIF(PFP!$B$8:$B$20,\"MO3\",PFP!$J$8:$J$20),2)","v":0}]
["A7","Seguro Contra Acidentes de Trabalho",null,null,null,{"$f":"ROUND(E15*SUMIF(PFP!$B$8:$B$20,\"MO3\",PFP!$J$8:$J$20),2)","v":0}]
["A8","FGTS",null,null,null,{"$f":"ROUND(E16*SUMIF(PFP!$B$8:$B$20,\"MO3\",PFP!$J$8:$J$20),2)","v":0}]
["A9","SECONCI",null,null,null,{"$f":"ROUND(E17*SUMIF(PFP!$B$8:$B$20,\"MO3\",PFP!$J$8:$J$20),2)","v":0}]
["B"," ENCARGOS SOCIAIS QUE RECEBEM INCIDÊNCIA DE \"A\"",null,null,{"$f":"ROUND(SUM(E19:E25),4)","v":0},{"$f":"ROUND(E18*SUMIF(PFP!$B$8:$B$20,\"MO3\",PFP!$J$8:$J$20),2)","v":0}]
["B3","Auxílio Enfermidade",null,null,null,{"$f":"ROUND(E19*SUMIF(PFP!$B$8:$B$20,\"MO3\",PFP!$J$8:$J$20),2)","v":0}]
["B4","13º Salário",null,null,null,{"$f":"ROUND(E20*SUMIF(PFP!$B$8:$B$20,\"MO3\",PFP!$J$8:$J$20),2)","v":0}]
["B5","Licença Paternidade",null,null,null,{"$f":"ROUND(E21*SUMIF(PFP!$B$8:$B$20,\"MO3\",PFP!$J$8:$J$20),2)","v":0}]
["B6","Faltas Justificadas",null,null,null,{"$f":"ROUND(E22*SUMIF(PFP!$B$8:$B$20,\"MO3\",PFP!$J$8:$J$20),2)","v":0}]
["B8","Auxílio Acidente de Trabalho",null,null,null,{"$f":"ROUND(E23*SUMIF(PFP!$B$8:$B$20,\"MO3\",PFP!$J$8:$J$20),2)","v":0}]
["B9","Férias Gozadas",null,null,null,{"$f":"ROUND(E24*SUMIF(PFP!$B$8:$B$20,\"MO3\",PFP!$J$8:$J$20),2)","v":0}]
["B10","Salário Maternidade",null,null,null,{"$f":"ROUND(E25*SUMIF(PFP!$B$8:$B$20,\"MO3\",PFP!$J$8:$J$20),2)","v":0}]
["C"," ENCARGOS SOCIAIS QUE NÃO RECEBEM INCIDÊNCIA DE \"A\"",null,null,{"$f":"ROUND(SUM(E27:E31),4)","v":0},{"$f":"ROUND(E26*SUMIF(PFP!$B$8:$B$20,\"MO3\",PFP!$J$8:$J$20),2)","v":0}]
["C1","Aviso Prévio Indenizado",null,null,null,{"$f":"ROUND(E27*SUMIF(PFP!$B$8:$B$20,\"MO3\",PFP!$J$8:$J$20),2)","v":0}]
["C2","Aviso Prévio Trabalhado",null,null,null,{"$f":"ROUND(E28*SUMIF(PFP!$B$8:$B$20,\"MO3\",PFP!$J$8:$J$20),2)","v":0}]
["C3","Férias Indenizadas",null,null,null,{"$f":"ROUND(E29*SUMIF(PFP!$B$8:$B$20,\"MO3\",PFP!$J$8:$J$20),2)","v":0}]
["C4","Depósito Rescisão Sem Justa Causa",null,null,null,{"$f":"ROUND(E30*SUMIF(PFP!$B$8:$B$20,\"MO3\",PFP!$J$8:$J$20),2)","v":0}]
["C5","Indenização Adicional",null,null,null,{"$f":"ROUND(E31*SUMIF(PFP!$B$8:$B$20,\"MO3\",PFP!$J$8:$J$20),2)","v":0}]
["D"," REINCIDÊNCIAS",null,null,{"$f":"ROUND(SUM(E33:E34),4)","v":0},{"$f":"ROUND(E32*SUMIF(PFP!$B$8:$B$20,\"MO3\",PFP!$J$8:$J$20),2)","v":0}]
["D1","Reincidência de \"A\" sobre \"B\"",null,null,null,{"$f":"ROUND(E33*SUMIF(PFP!$B$8:$B$20,\"MO3\",PFP!$J$8:$J$20),2)","v":0}]
["D2","Reincidência de \"A\" sobre Aviso Prévio Trabalhado e reincidência do FGTS sobre Aviso Prévio Indenizado",null,null,null,{"$f":"ROUND(E34*SUMIF(PFP!$B$8:$B$20,\"MO3\",PFP!$J$8:$J$20),2)","v":0}]
["K1c","ENCARGOS SOCIAIS",null,null,{"$f":"ROUND(E8+E18+E26+E32,4)","v":0},{"$f":"ROUND(E35*SUMIF(PFP!$B$8:$B$20,\"MO3\",PFP!$J$8:$J$20),2)","v":0}]
["Kc","TAXA DE RESSARCIMENTO DE DESPESAS E ENCARGOS SOBRE MO3",null,null,{"$f":"ROUND((1+E35+PFP3_FatorKd!E13)*(1+PFP3_FatorKd!E12)*(1+PFP3_FatorKd!E8),4)","v":1.4178999999999999}]
["OBSERVAÇÃO: SOCIETÁRIOS E EQUIVALENTES"]
["1 - DISCRIMINAR OS ENCARGOS SOCIAIS COM SEUS RESPECTIVOS PERCENTUAS TOTALIZANDO OS MESMOS. "]
["2 - APLICAR O % TOTAL P/ CALCULAR OS E. SOCIAIS INCIDENTES NA MÃO-DE-OBRA DE SOCIETÁRIOS"]
["Kc - Taxa de Ressarcimento de Despesas e Encargos sobre a Mão de Obra SOCIETÁRIA (incide apenas no Insumo Codigo MO3)"]
["Kc = (1 + K1 + K2) x (1 + K3) x (1 + K4)"]

{"sheet":"PFP3_FatorKd","index":8,"n_rows":35,"n_cols":6,"rows_kept":35,"cut":false,"hidden":false,"merged":[[32,0,32,5],[12,1,12,3],[11,1,11,3],[8,1,8,2],[9,1,9,2],[10,1,10,2],[7,1,7,2],[25,0,25,5],[6,1,6,2],[0,0,1,4],[2,0,2,5],[5,0,5,1],[5,2,5,4],[4,2,4,4],[3,0,3,5],[33,0,33,5],[34,0,34,5],[16,1,16,3],[13,1,13,3],[14,1,14,3],[15,1,15,3],[21,0,21,5],[26,0,26,5],[27,0,27,5],[22,0,22,5],[23,0,23,5],[24,0,24,5],[28,0,28,5],[29,0,29,5],[30,0,30,5],[31,0,31,5]]}
["DESPESAS FISCAIS E CUSTOS DIVERSOS: Kc",{"$nulls":4},"CODIGO:"]
[{"$nulls":5},"PFP-3"]
["NOME DA CONSULTORA:"]
[]
["PROJETO:",null,"CONTRATANTE:",null,null,{"$f":"PFP!J5","v":"BASE: Nov/2023"}]
[{"$f":"PFP!A6","v":"DIAGNÓSTICO E READEQUAÇÃO DE PROJETO BÁSICO PARA CONCLUSÃO DO SISTEMA DE ABASTECIMENTO DE ÁGUA PARA CONSUMO HUMANO EM COMUNIDADES DIFUSAS DO MUNICÍPIO DE PÃO DE AÇÚCAR,  NO ESTADO DE ALAGOAS."},null,"CODEVASF (SEDE)",null,null,{"$f":"PFP!J6","v":"PROP: Nov/2023\nCODEVASF: fev/2020\nSICRO/AL: Julho/2023\nEMBASA: Maio/2023\nORSE: Set/2023\nSINAPI: Set/2023"}]
["Cod","DESCRIÇÃO1",null,"% preço2","% custo4","R$"]
["K4","TRIBUTOS",null,{"$f":"ROUND(D9+D10+D11,4)","v":0.124},{"$f":"ROUND(E9+E10+E11,4)","v":0.1416},{"$f":"E8*SUM(SUMIF(PFP!$B$8:$B$20,\"MO1\",PFP!$J$8:$J$20)*(1+PFP2.1_FatorKa!$E$35)+SUMIF(PFP!$B$8:$B$20,\"MO2\",PFP!$J$8:$J$20)*(1+PFP2.2_FatorKb!$E$35)+SUMIF(PFP!$B$8:$B$20,\"<>MO*\",PFP!$J$8:$J$20)+$F$13+$F$12)","v":0}]
["K4.1","ISS",null,0.05,5.7099999999999998E-2,{"$f":"E9*SUM(SUMIF(PFP!$B$8:$B$20,\"MO1\",PFP!$J$8:$J$20)*(1+PFP2.1_FatorKa!$E$35)+SUMIF(PFP!$B$8:$B$20,\"MO2\",PFP!$J$8:$J$20)*(1+PFP2.2_FatorKb!$E$35)+SUMIF(PFP!$B$8:$B$20,\"<>MO*\",PFP!$J$8:$J$20)+$F$13+$F$12)","v":0}]
["K4.2","PIS3 - aliquota efetiva aplicavel percentual-desconto",null,1.32E-2,1.5100000000000001E-2,{"$f":"E10*SUM(SUMIF(PFP!$B$8:$B$20,\"MO1\",PFP!$J$8:$J$20)*(1+PFP2.1_FatorKa!$E$35)+SUMIF(PFP!$B$8:$B$20,\"MO2\",PFP!$J$8:$J$20)*(1+PFP2.2_FatorKb!$E$35)+SUMIF(PFP!$B$8:$B$20,\"<>MO*\",PFP!$J$8:$J$20)+$F$13+$F$12)","v":0}]
["K4.3","COFINS3 - aliquota efetiva aplicavel percentual-desconto",null,6.08E-2,6.9400000000000003E-2,{"$f":"E11*SUM(SUMIF(PFP!$B$8:$B$20,\"MO1\",PFP!$J$8:$J$20)*(1+PFP2.1_FatorKa!$E$35)+SUMIF(PFP!$B$8:$B$20,\"MO2\",PFP!$J$8:$J$20)*(1+PFP2.2_FatorKb!$E$35)+SUMIF(PFP!$B$8:$B$20,\"<>MO*\",PFP!$J$8:$J$20)+$F$13+$F$12)","v":0}]
["K3","REMUNERAÇÃO DA EMPRESA (LUCRO)",null,null,0.08,{"$f":"E12*SUM(SUMIF(PFP!$B$8:$B$20,\"MO1\",PFP!$J$8:$J$20)*(1+PFP2.1_FatorKa!$E$35)+SUMIF(PFP!$B$8:$B$20,\"MO2\",PFP!$J$8:$J$20)*(1+PFP2.2_FatorKb!$E$35)+SUMIF(PFP!$B$8:$B$20,\"<>MO*\",PFP!$J$8:$J$20)+$F$13)","v":0}]
["K2","CUSTOS DA ADMINISTRAÇÃO CENTRAL",null,null,{"$f":"ROUND(SUM(E14:E16),4)","v":0.15},{"$f":"ROUND(E13*SUMIF(PFP!$B$8:$B$20,\"MO*\",PFP!$J$8:$J$20),2)","v":0}]
["K2.1","Custos da administração central da empresa (diretoria, pessoal técnico de apoio e pessoal administrativo não diretamente vinculado à prestação dos serviços)",null,null,0.1,{"$f":"ROUND(E14*SUMIF(PFP!$B$8:$B$20,\"MO*\",PFP!$J$8:$J$20),2)","v":0}]
["K2.2","Outras despesas que afetam o custo de produção como treinamento, biblioteca, programa de qualidade, programa de benefícios, auditoria interna e externa",null,null,0.03,{"$f":"ROUND(E15*SUMIF(PFP!$B$8:$B$20,\"MO*\",PFP!$J$8:$J$20),2)","v":0}]
["K2.3","Despesas fixas e variaveis com patrimônio, aluguéis, comunicação, manutenção e transporte não diretamente relacionados com o custo direto dos serviços",null,null,0.02,{"$f":"ROUND(E16*SUMIF(PFP!$B$8:$B$20,\"MO*\",PFP!$J$8:$J$20),2)","v":0}]
["Kd","TAXA RESSARCIMENTO DE DESPESAS SOBRE CUSTOS DIVERSOS",null,null,{"$f":"ROUND((1+E12)*(1+E8),4)","v":1.2329000000000001}]
["NOME DO INFORMANTE:",null,null,null,"QUALIFICAÇÃO:"]
[]
["ASSINATURA:",null,null,null,"DATA:"]
[]
["Observação:"]
["1 - RELACIONAR OS CUSTOS DE ADMINISTRAÇÃO COM RESPECTIVOS PERCENTUAIS INCIDENTES NA MÃO -DE-OBRA"]
["1 - DISCRIMINAR OS TRIBUTOS QUE INCIDEM SOBRE OS CUSTOS DA PRESTAÇÃO DOS SERVIÇOS"]
["2 - K4 = INDICAR % DE CADA TRIBUTO E A SOMA DOS MESMOS (ex: ISS 5% + PIS 1,65% + COFINS 7,60% = 14,25%)"]
["3 - PIS e COFINS, Regime de Incidencia Acumulativa (0,65% e 3,00% - sem percentual de desconto) ou em Regime de Incidencia Não Acumulativa (1,65% e 7,60% - aplicável percentual de desconto) de acordo com a forma de apuração do lucro no IRPJ. APRESENTAR COMPROVANTES de aproveitamento de créditos tributários dos últimos 12 meses em caso de aplicação de \"percentual de desconto\"."]
["4 - AS DESPESAS FISCAIS (K4) INCIDEM SOBRE O TOTAL DA FATURA E NÃO SOBRE OS CUSTOS INCORRIDOS, "]
["     DEVENDO SER CALCULADO O K4' APLICANDO-SE A SEGUINTE FÓRMULA:"]
["     K4' = { [ 1 / ( 1 - K4) ] - 1 } x 100"]
[{"$f":"CONCATENATE(\"     K4' = { [ 1 / ( 1 - \",D8,\" ) ] - 1 } x 100\")","v":"     K4' = { [ 1 / ( 1 - 0,124 ) ] - 1 } x 100"}]
["Kc - Taxa de Ressarcimento de Despesas sobre Custos Diversos (incide sobre os Insumos Codigo DP e EM)"]
["Kc = (1 + K3) x (1 + K4)"]
["K2 - Incide sobre o Custo Total (CT) da Mão de Obra (MO* = MO1 + MO2)"]
["K3 - Incide sobre o Custo Total (CT) Mão de Obra com encargos (MO1 x Ka ou MO2 x Kb), demais Custos (DP e EM), e Custos da Administração Central (K2)"]
["K4 -  Incide sobre o Custo Total (CT) Mão de Obra com encargos (MO1 x Ka ou MO2 x Kb), demais Custos (DP e EM), e Custos da Administração Central (K2) e Lucro (K3)"]

{"sheet":"CRO1_Ins-Pro","index":9,"n_rows":38,"n_cols":11,"rows_kept":38,"cut":false,"hidden":false,"merged":[[0,7,0,10],[1,7,1,10],[19,0,20,0],[19,1,20,1],[0,0,1,6]]}
["INSUMOS POR ETAPA/PRODUTO",{"$nulls":6},"CODIGO:"]
[{"$nulls":7},"CRO-1"]
["Cod.","Categoria / Insumo","Uni","Qde","CUD","PU","FatorK","Etapa 1","Etapa 2","Etapa 3","Etapa 4"]
[{"$nulls":6},"Meses",1,1,1,1]
[{"$f":"PFP!C8","v":"P0"},{"$f":"PFP!D8","v":"Engenheiro coordenador (P8061)"},"mês",0.5,{"$f":"PFP!G8","v":0},{"$f":"PFP!H8","v":0},{"$f":"PFP!I8","v":1.4178999999999999},0.2,null,0.2,0.1]
[{"$f":"PFP!C9","v":"P1"},{"$f":"PFP!D9","v":"Engenheiro sênior (P8067)"},"mês",0.5,{"$f":"PFP!G9","v":0},{"$f":"PFP!H9","v":0},{"$f":"PFP!I9","v":1.6645000000000001},0.2,null,0.2,0.1]
[{"$f":"PFP!C10","v":"P2"},{"$f":"PFP!D10","v":"Engenheiro pleno (P8066)"},"mês",2,{"$f":"PFP!G10","v":0},{"$f":"PFP!H10","v":0},{"$f":"PFP!I10","v":2.2776000000000001},0.5,null,0.5,1]
[{"$f":"PFP!C11","v":"P3"},{"$f":"PFP!D11","v":"Engenheiro júnior (P8065)"},"mês",2,{"$f":"PFP!G11","v":0},{"$f":"PFP!H11","v":0},{"$f":"PFP!I11","v":2.2776000000000001},0.5,null,0.5,1]
[{"$f":"PFP!C12","v":"T1"},{"$f":"PFP!D12","v":"Técnico de projetos/obra (P8147)"},"mês",3,{"$f":"PFP!G12","v":0},{"$f":"PFP!H12","v":0},{"$f":"PFP!I12","v":2.2776000000000001},0.5,null,1,1.5]
[{"$f":"PFP!C13","v":"ECA"},{"$f":"PFP!D13","v":"Encargos Comp. e Adicionais"},"mês",7.5,{"$f":"PFP!G13","v":0},{"$f":"PFP!H13","v":0},{"$f":"PFP!I13","v":1.2329000000000001},{"$f":"SUM(H6:H9)","v":1.7},null,{"$f":"SUM(J6:J9)","v":2.2000000000000002},{"$f":"SUM(K6:K9)","v":3.6}]
[{"$f":"PFP!C14","v":"AT2"},{"$f":"PFP!D14","v":"Auxilio Transporte Técnicos"},"mês",3,{"$f":"PFP!G14","v":0},{"$f":"PFP!H14","v":0},{"$f":"PFP!I14","v":1.2329000000000001},{"$f":"H9","v":0.5},null,{"$f":"J9","v":1},{"$f":"K9","v":1.5}]
[{"$f":"PFP!C15","v":"V1"},{"$f":"PFP!D15","v":"Diárias"},"dia",40,{"$f":"PFP!G15","v":0},{"$f":"PFP!H15","v":0},{"$f":"PFP!I15","v":1.2329000000000001},15,9,8,8]
[{"$f":"PFP!C16","v":"V2"},{"$f":"PFP!D16","v":"Pick-up cabine dupla 4x4, com ar-condicionado, incluindo despesas com combustível, óleos, conservação e manutenção"},"un",10,{"$f":"PFP!G16","v":0},{"$f":"PFP!H16","v":0},{"$f":"PFP!I16","v":1.2329000000000001},3,3,2,2]
[{"$f":"PFP!C17","v":"M1"},{"$f":"PFP!D17","v":"Relatório Parcial"},"un",3,{"$f":"PFP!G17","v":0},{"$f":"PFP!H17","v":0},{"$f":"PFP!I17","v":1.2329000000000001},1,1,1]
[{"$f":"PFP!C18","v":"M2"},{"$f":"PFP!D18","v":"Relatório Final"},"un",1,{"$f":"PFP!G18","v":0},{"$f":"PFP!H18","v":0},{"$f":"PFP!I18","v":1.2329000000000001},null,null,null,1]
[{"$f":"PFP!C19","v":"TOP"},{"$f":"PFP!D19","v":"Total Serviços Topográficos"},"un",1,{"$f":"PFP!G19","v":"-"},{"$f":"PFP!H19","v":0},{"$f":"PFP!I19","v":"-"},null,1]
[{"$f":"PFP!C20","v":"TÉC"},{"$f":"PFP!D20","v":"Total Serviços Técnicos"},"un",1,{"$f":"PFP!G20","v":"-"},{"$f":"PFP!H20","v":0},{"$f":"PFP!I20","v":"-"},1]
[{"$f":"PFP!C21","v":"GEO"},{"$f":"PFP!D21","v":"Total Serviços Geotécnicos"},"un",1,{"$f":"PFP!G21","v":"-"},{"$f":"PFP!H21","v":0},{"$f":"PFP!I21","v":"-"},1]
[{"$f":"PFP!C22","v":"AMB"},{"$f":"PFP!D22","v":"Total Serviços Ambientais"},"un",1,{"$f":"PFP!G22","v":"-"},{"$f":"PFP!H22","v":0},{"$f":"PFP!I22","v":"-"},1]
["TOTAL","VALOR TOTAL POR PRODUTO POR SISTEMA","R$",{"$f":"SUM(H20:K20)","v":0},null,null,null,{"$f":"ROUND(SUM(H24:H38),2)","v":0},{"$f":"ROUND(SUM(I24:I38),2)","v":0},{"$f":"ROUND(SUM(J24:J38),2)","v":0},{"$f":"ROUND(SUM(K24:K38),2)","v":0}]
[null,null,"%",{"$error":"#DIV/0!"},null,null,null,{"$f":"ROUND(H20/$D$20,5)","v":{"$error":"#DIV/0!"}},{"$f":"ROUND(I20/$D$20,5)","v":{"$error":"#DIV/0!"}},{"$error":"#DIV/0!"},{"$error":"#DIV/0!"}]
[]
[]
[{"$nulls":7},{"$f":"$F5*H5","v":0},{"$f":"$F5*I5","v":0},{"$f":"$F5*J5","v":0},{"$f":"$F5*K5","v":0}]
[{"$nulls":7},{"$f":"$F6*H6","v":0},0,0,{"$f":"ROUND($F6*K6,2)","v":0}]
[{"$nulls":7},0,0,0,{"$f":"$F7*K7","v":0}]
[{"$nulls":7},0,0,0,0]
[{"$nulls":7},0,0,0,0]
[{"$nulls":7},0,0,0,0]
[{"$nulls":7},0,0,0,0]
[{"$nulls":7},0,0,0,0]
[{"$nulls":7},0,0,0,0]
[{"$nulls":7},0,0,0,0]
[{"$nulls":7},0,0,0,0]
[{"$nulls":7},0,0,0,0]
[{"$nulls":7},0,0,0,0]
[{"$nulls":7},0,0,0,0]
[{"$nulls":7},{"$f":"$F19*H19","v":0},0,0,0]

{"sheet":"CCU VEÍCULO","index":10,"n_rows":54,"n_cols":4,"rows_kept":54,"cut":false,"hidden":false,"merged":[[0,2,0,4],[1,1,2,1],[1,2,1,4],[2,2,2,4],[4,2,4,4]]}
[null,null,"Ministério do Desenvolvimento Regional-MDR"]
[null,null,"Companhia de Desenvolvimento dos Vales do São Francisco e do Parnaíba"]
[null,null,"5ª Superintendência Regional"]
[]
[null,"CCU\nVEÍCULO","  FORNECIMENTO DE PICK-UP CABINE DUPLA 4x4, COM AR-CONDICIONADO, INCLUINDO DESPESAS COM COMBUSTÍVEL, ÓLEOS, CONSERVAÇÃO E MANUTENÇÃO."]
[null,null," "]
[]
[]
[null,"A","Depreciação mensal do equipamento"]
[null,"A1","Preço de Aquisição "]
[null,"A2","Tempo previsto de vida útil (meses)",36]
[null,"A3","Previsão de recup. na venda do bem usado",0.4]
[null,"A4","Custo mensal [A1-(A3xA1)]/A2",{"$f":"(D10-(D12*D10))/D11","v":0}]
[]
[null,"B","Juros pelo Capital empregado"]
[null,"B1","Taxa mensal de Juros ",0.05]
[null,"B2","Juros s/depreciação/aluguel (B1xA4)",{"$f":"D16*D13","v":0}]
[]
[null,"C","Conservação e manutenção "]
[null,"C1","Taxa de gastos s/a deprec. Inc. seguros (%)",1]
[null,"C2","Incidência mensal (C1xA4)",{"$f":"D20*D13","v":0}]
[null," "," "," "]
[null,"D","Combustível"]
[null,"D1","Média mensal de quilômetro por veículo",3000]
[null,"D2","Preço do litro de combustível "]
[null,"D3","Quilômetros rodados com um litro combustivel",10]
[null,"D4","Combustivel    (D1/D3)*D2",{"$f":"(D24/D26)*D25","v":0}]
[]
[null,"E","Lubrificantes"]
[null,"E1","Quilometragem do Contrato ",36000]
[null,"E2","Franquia por troca de óleo (km)",5000]
[null,"E3","Preço do litro de óleo "]
[null,"E4","Quantidade de litros de óleo por troca",3.5]
[null,"E5","Quantidade de dias do Contrato",{"$f":"D42","v":365}]
[null,"E6","Lubrificantes  E = (E1*E3*E4*30)/E2*E5",{"$f":"(D30*D32*D33*30)/(D31*D34)","v":0}]
[]
[null,"F","Pneus"]
[null,"F1","Quilometragem do Contrato ",{"$f":"D30","v":36000}]
[null,"F2","Vida do Pneu em quilômetros",45000]
[null,"F3","Quantidade de pneus",5]
[null,"F4","Preço do Pneu"]
[null,"F5","Quantidade de dias do contrato ",365]
[null,"F6","Pneus = (F1*F3*F4*30)/(F2*F5)",{"$f":"(D38*D40*D41*30)/(D39*D42)","v":0}]
[]
[null,"G","Motorista"]
[null,"G1","Salário com encargos sociais"]
[]
[null,"H","Custo Mensal"," "]
[null,null,"Sem Motorista",{"$f":"D43+D35+D27+D21+D17+D13","v":0}]
[null,null,"Com Motorista"]
[]
[null,"I","Custo por dia (30 dias)"]
[null,null,"Sem Motorista",{"$f":"ROUND(D49/30,2)","v":0}]
[null,null,"Com Motorista",{"$f":"D50/D24","v":0}]